lending/lending_fUSD_20250913
["ID","MTS","AMOUNT","RATE_DAILY","PERIOD"]
[385316490,1757770246585,-150.0,0.00028767,2]
[385316491,1757770246597,-150.0,0.00028767,2]
[385316492,1757770246607,-150.0,0.00028767,2]
[385316493,1757770246618,-150.0,0.00028767,2]
[385316494,1757770246629,-150.0,0.00028767,2]
[385316495,1757770246638,-500.0,0.00028767,2]
[385316496,1757770246648,-500.0,0.00028767,2]
[385316497,1757770246663,-150.0,0.00028767,2]
[385316498,1757770246673,-150.0,0.00028767,2]
[385316499,1757770246684,-150.0,0.00028767,2]
[385316500,1757770246694,-1000.0,0.000288,2]
[385316501,1757770246704,-330.0,0.00028813,7]
[385316502,1757770246714,-220.77298968,0.00028829,2]
[385316503,1757770246724,-173.50223023,0.00028839,2]
[385316504,1757770246734,-151.0,0.00028839,7]
[385316505,1757770246743,-256.718648,0.00028839,7]
[385316506,1757770246753,-2032.6913787,0.00028871,2]
[385316507,1757770246764,-327.0,0.00028902,7]
[385316508,1757770246774,-151.0,0.00029009,7]
[385316509,1757770246784,-151.0,0.00029009,7]
[385316510,1757770246794,-2500.0,0.00029027,2]
[385316511,1757770246803,-200.0,0.00029041,2]
[385316512,1757770246813,-150.0,0.00029041,2]
[385316513,1757770246823,-150.0,0.00029041,2]
[385316514,1757770246833,-150.0,0.00029041,2]
[385316515,1757770246843,-200.0,0.00029041,2]
[385316517,1757770246852,-500.0,0.00029041,2]
[385316518,1757770246862,-350.0,0.00029041,2]
[385316519,1757770246872,-200.0,0.00029041,2]
[385316520,1757770246882,-200.0,0.00029041,2]
[385316521,1757770246894,-200.0,0.00029041,2]
[385316522,1757770246905,-471.73,0.00029096,2]
[385316523,1757770246916,-471.73,0.00029096,2]
[385316524,1757770246926,-471.73,0.00029096,2]
[385316525,1757770246936,-471.73,0.00029096,2]
[385316526,1757770246946,-471.73,0.00029096,2]
[385316527,1757770246955,-941.57,0.00029096,2]
[385316528,1757770246965,-151.0,0.00029103,7]
[385316529,1757770246975,-215.747051,0.00029103,7]
[385316530,1757770246985,-51.47066241,0.00029103,7]
[385316531,1757770247569,999.0,0.00032876,120]
[385316532,1757770323171,150.0,0.0002851,120]
[385316533,1757770456359,324.05,0.000202,2]
[385316534,1757770500011,999.0,0.00032876,120]
[385316535,1757770513915,400.0,0.00033,120]
[385316536,1757770547332,405.60555891,0.00033,120]
[385316537,1757770634395,-999.0,0.00033698,120]
[385316538,1757770634777,-999.0,0.0003452,120]
[385316539,1757770634842,-159.0,0.000348,120]
[385316540,1757770634911,-999.0,0.00035342,120]
[385316541,1757770634968,-1023.0,0.00035616,120]
[385316542,1757770635034,-999.0,0.00036164,120]
[385316543,1757770635090,-190.1537169,0.000365,120]
[385316544,1757770635115,-4631.8462831,0.000368,120]
[385316545,1757770657128,-10000.0,0.000368,120]
[385316546,1757770682052,-47683.00276419,0.000368,120]
[385316547,1757770682075,-169.49526777,0.000369,120]
[385316548,1757770682098,-700.0,0.00036986,120]
[385316549,1757770682120,-700.0,0.00036986,120]
[385316550,1757770682143,-700.0,0.00036986,120]
[385316551,1757770682165,-700.0,0.00036986,120]
[385316552,1757770682188,-437.98417647,0.00036986,120]
[385316553,1757770682212,-999.0,0.00036986,120]
[385316554,1757770691687,2888.0,0.00037,120]
[385316555,1757770715154,999.0,0.00032876,120]
[385316556,1757770715431,772.42148278,0.00033698,120]
[385316557,1757770769368,-2000.0,0.00030136,30]
[385316558,1757770769430,-171.78,0.00030137,30]
[385316559,1757770769501,-2000.0,0.0003041,30]
[385316560,1757770769594,-699.71289738,0.00030684,30]
[385316561,1757770786033,-358.35,0.00032,30]
[385316562,1757770793211,-156.63160931,0.00032137,30]
[385316563,1757770793286,-156.63160931,0.00032493,30]
[385316564,1757770793353,-209.0,0.0003265,30]
[385316565,1757770793377,-156.63160931,0.00032822,30]
[385316566,1757770812185,268.04,0.000311,30]
[385316567,1757770812532,268.04,0.000323,30]
[385316568,1757770980307,-237.55054086,0.00022906,2]
[385316569,1757770980334,-500.0,0.00022906,2]
[385316570,1757770980361,-500.0,0.00022906,2]
[385316571,1757770980387,-598.47502228,0.00022906,2]
[385316572,1757770980409,-201650.395036,0.00022907,2]
[385316573,1757770980434,-1100.0,0.00022916,2]
[385316574,1757770990326,300.0,0.00022806,2]
[385316576,1757771009681,200.0,0.00033,30]
[385316577,1757771009930,214.43,0.000312,30]
[385316578,1757771010265,214.43,0.000325,30]
[385316579,1757771205688,171.55,0.000312,30]
[385316580,1757771206009,171.55,0.000325,30]
[385316585,1757771321877,1032.8791103,0.00033,30]
[385316586,1757771404280,152.49,0.000307,30]
[385316587,1757771404610,152.49,0.000319,30]
[385316593,1757771432275,-161.76,0.00023008,4]
[385316594,1757771432286,-255.0,0.0002322,2]
[385316595,1757771432296,-255.0,0.0002399,2]
[385316596,1757771432306,-176.52,0.00024658,2]
[385316597,1757771432316,-206.91659995,0.0002476,2]
[385316598,1757771432347,-48.08340005,0.0002476,2]
[385316599,1757771432356,-151.0,0.00024775,2]
[385316600,1757771432367,-2176.19945556,0.000249,2]
[385316601,1757771432376,-250.0,0.00025309,2]
[385316602,1757771432386,-150.0,0.00025502,7]
[385316603,1757771432395,-255.0,0.0002553,2]
[385316604,1757771432404,-255.0,0.000263,2]
[385316605,1757771432413,-1000.0,0.00026425,2]
[385316606,1757771432423,-3470.8922367,0.00026635,2]
[385316607,1757771432432,-1200.0,0.00026796,2]
[385316608,1757771432441,-388.97,0.00026797,2]
[385316609,1757771432451,-352.71935457,0.00027,4]
[385316610,1757771432462,-757.28064543,0.00027,4]
[385316611,1757771432471,-255.0,0.0002707,2]
[385316612,1757771432480,-236.66,0.00027087,2]
[385316613,1757771432489,-300.0,0.00027098,2]
[385316614,1757771432498,-151.0,0.00027397,2]
[385316615,1757771432507,-150.0,0.00027397,5]
[385316616,1757771432516,-513.33,0.0002742,2]
[385316617,1757771432525,-255.0,0.0002784,2]
[385316618,1757771432534,-151.0,0.00027945,5]
[385316619,1757771432544,-300.31681653,0.0002799,2]
[385316620,1757771432553,-177.60833581,0.00027999,2]
[385316621,1757771432563,-2000.0,0.00028,2]
[385316622,1757771432572,-7100.98020223,0.00028,2]
[385316623,1757771432631,-2426.60648129,0.00028,2]
[385316624,1757771432646,-81391.90625447,0.00028,2]
[385316652,1757771438211,-950.07001464,0.00028,2]
[385316653,1757771438267,-32876.17155327,0.00028,2]
[385316654,1757771438279,-2145.87327314,0.00028,2]
[385316655,1757771438290,-1294.0,0.000282,2]
[385316656,1757771438299,-824.36870779,0.00028223,2]
[385316709,1757771440346,-425.39101551,0.00028223,2]
[385316710,1757771440565,-100.8205076,0.00028223,2]
[385316711,1757771440575,-154.78446285,0.00028335,2]
[385316712,1757771440586,-1591.22153715,0.00028335,2]
[385316713,1757771440596,-236.66,0.00028441,2]
[385316714,1757771440605,-513.33,0.00028448,2]
[385316715,1757771440615,-155.42281418,0.00028493,5]
[385316716,1757771440626,-2208.97025143,0.000285,2]
[385316717,1757771440636,-166.2853786,0.00028547,2]
[385316718,1757771440645,-10775.62613638,0.00028548,2]
[385316986,1757771443401,-356.18589786,0.00028335,2]
[385316988,1757771443413,-164.66030204,0.00028335,2]
[385316990,1757771443423,-2723.14706362,0.00028548,2]
[385316992,1757771443433,-255.0,0.000286,2]
[385316994,1757771443442,-258.38273096,0.00028672,2]
[385316996,1757771443451,-932.86032284,0.00028733,2]
[385317007,1757771443543,-1200.0,0.00028733,2]
[385317110,1757771444464,-392.26,0.00028733,2]
[385317308,1757771446337,-546.006,0.00028733,2]
[385317320,1757771446458,-4281.17542786,0.00028733,2]
[385317322,1757771446468,-2208.97025143,0.00028762,2]
[385317324,1757771446478,-825.02049824,0.00028823,2]
[385317326,1757771446487,-700.0,0.000289,10]
[385317328,1757771446496,-186.3681768,0.000289,2]
[385317330,1757771446506,-150.0,0.00028971,2]
[385317332,1757771446515,-266.75527174,0.00028973,2]
[385317334,1757771446524,-339.98220908,0.00028975,2]
[385317336,1757771446533,-413.20914642,0.00028977,2]
[385317338,1757771446543,-486.43608376,0.00028979,2]
[385317340,1757771446552,-559.6630211,0.00028982,2]
[385317342,1757771446561,-632.88995844,0.00028984,2]
[385317344,1757771446570,-706.11689578,0.00028986,2]
[385317346,1757771446580,-779.34383313,0.00028988,2]
[385317348,1757771446589,-78001.3900137,0.0002899,2]
[385317350,1757771446599,-852.57077048,0.0002899,2]
[385317352,1757771446609,-11362.82146782,0.00028999,2]
[385317354,1757771446619,-322783.66156957,0.00029,3]
[385317356,1757771446631,-17877.37404582,0.00029,2]
[385317362,1757771446681,-509.36552257,0.00029,2]
[385317662,1757771459765,2040.50664514,0.00033,30]
[385317663,1757771601768,152.49,0.000311,30]
[385317664,1757771601901,152.49,0.000325,30]
[385317666,1757771659972,400.0,0.00033,30]
[385317667,1757771672109,400.0,0.00033,30]
[385317668,1757771686502,400.0,0.00033,30]
[385317669,1757771720880,1922.91700285,0.0003,120]
[385317670,1757771796199,152.49,0.000326,30]
[385317671,1757771804089,400.0,0.00033,30]
[385317672,1757771815449,10000.0,0.00033,30]
[385317673,1757771834716,1000.0,0.00033,30]
[385317674,1757771854945,3000.0,0.00033,30]
[385317675,1757771855167,3959.15,0.00033,30]
[385317676,1757771880530,3000.0,0.00033,30]
[385317679,1757771993021,152.49,0.000325,30]
[385317680,1757772171996,-2615236.55521793,0.00037362,30]
[385317681,1757772172023,-4043.65,0.00037362,120]
[385317682,1757772172049,-344.376,0.00037362,60]
[385317683,1757772172074,-425.86114,0.00037362,60]
[385317684,1757772172099,-1004.21168962,0.00037362,30]
[385317685,1757772172123,-150.0,0.00037362,30]
[385317686,1757772172148,-213.1,0.00037362,30]
[385317687,1757772172173,-1000.0,0.00037362,120]
[385317688,1757772172200,-193028.58662889,0.00037362,30]
[385317689,1757772172231,-1479116.00735686,0.00037362,30]
[385317690,1757772172257,-24604.7777541,0.00037362,30]
[385317691,1757772172284,-307.91179335,0.00037362,120]
[385317692,1757772172309,-152.22,0.00037362,31]
[385317693,1757772172335,-1542.9214533,0.00037362,120]
[385317694,1757772172360,-2343.0,0.00037362,32]
[385317695,1757772172384,-2000.0,0.00037362,120]
[385317696,1757772172409,-3000.0,0.00037362,120]
[385317697,1757772172434,-3000.0,0.00037362,120]
[385317698,1757772172460,-2320.67699987,0.00037362,120]
[385317699,1757772172488,-2666256.14396608,0.00037362,30]
[385317700,1757772247556,348.94,0.00024725,15]
[385317701,1757772251552,165.0,0.00031,120]
[385317702,1757772423580,331.19791723,0.00033,30]
[385317703,1757772426265,150.0,0.000301,120]
[385317704,1757772467587,999.0,0.00032876,120]
[385317705,1757772479877,1000.0,0.00030136,120]
[385317706,1757772480156,178.78285679,0.0003041,120]
[385317707,1757772484486,781.27,0.00030136,30]
[385317708,1757772484954,781.27,0.0003041,30]
[385317709,1757772485207,781.27,0.00030684,30]
[385317710,1757772485497,781.27,0.00030958,30]
[385317711,1757772485737,781.27,0.00031232,30]
[385317712,1757772486001,781.27,0.00031506,30]
[385317713,1757772486279,781.27,0.0003178,30]
[385317714,1757772487274,781.27,0.00032054,30]
[385317715,1757772487825,781.27,0.00032328,30]
[385317716,1757772487958,781.27,0.00032602,30]
[385317717,1757772488041,781.27,0.00032876,30]
[385317718,1757772498474,158.0,0.00031,120]
[385317719,1757772533580,151.0,0.00031,120]
[385317720,1757772547776,150.0,0.000301,120]
[385317721,1757772617232,151.0,0.00031,120]
[385317722,1757772621966,1881.27449,0.00027,120]
[385317738,1757772631533,-2501.31931309,0.000249,2]
[385317740,1757772631543,-152.81,0.000249,2]
[385317742,1757772631553,-500.0,0.00024963,2]
[385317744,1757772631563,-300.0,0.00024963,2]
[385317746,1757772631573,-300.0,0.00025025,2]
[385317748,1757772631582,-177.6,0.0002515,2]
[385317749,1757772631591,-512.78047823,0.00025447,2]
[385317750,1757772631601,-248.77393138,0.00025447,2]
[385317751,1757772631611,-1024.96,0.00026,2]
[385317752,1757772631623,-1200.0,0.00026158,2]
[385317753,1757772631633,-300.0,0.00026159,2]
[385317754,1757772631646,-300.0,0.00026159,2]
[385317755,1757772631657,-300.0,0.00026159,2]
[385317756,1757772631667,-300.0,0.00027343,2]
[385317757,1757772631676,-300.0,0.00027343,2]
[385317758,1757772631686,-300.0,0.00027343,2]
[385317759,1757772631696,-150.0,0.00027345,2]
[385317760,1757772631706,-150.0,0.00027345,2]
[385317761,1757772631716,-150.0,0.00027345,2]
[385317762,1757772631726,-150.0,0.00027345,2]
[385317763,1757772631736,-150.0,0.00027345,2]
[385317764,1757772631746,-150.0,0.00027345,2]
[385317765,1757772631757,-300.0,0.0002739,2]
[385317766,1757772631767,-1228.17814791,0.0002739,2]
[385317767,1757772631776,-195.0,0.0002739,2]
[385317768,1757772631787,-500.0,0.0002739,2]
[385317769,1757772631797,-300.0,0.0002739,2]
[385317770,1757772631807,-151.25,0.00027397,2]
[385317771,1757772631817,-394.49,0.00027665,2]
[385317772,1757772631827,-1153.99,0.00027677,7]
[385317773,1757772631837,-436.81,0.00027819,2]
[385317774,1757772631847,-245.73,0.00028019,2]
[385317775,1757772631857,-150.0,0.00028062,7]
[385317776,1757772631872,-666.0,0.00028098,3]
[385317777,1757772631882,-508.0,0.00028216,2]
[385317778,1757772631895,-1144.51145315,0.00028223,2]
[385317779,1757772631904,-1680.22689339,0.00028335,2]
[385317780,1757772631914,-1680.0,0.0002843,2]
[385317781,1757772631923,-168.0,0.00028486,2]
[385317782,1757772631933,-1915.0,0.000285,2]
[385317783,1757772631943,-294.83407107,0.00028586,2]
[385317784,1757772631954,-4397.28269619,0.00028668,2]
[385317785,1757772631967,-257.55381312,0.00028668,2]
[385317786,1757772631990,-62.16349069,0.00028668,2]
[385317787,1757772632000,-1094.0,0.00028668,2]
[385317788,1757772632009,-801.70852931,0.00028759,2]
[385317789,1757772632021,-1108.42358662,0.00028759,2]
[385317790,1757772632032,-19.43315097,0.00028759,2]
[385317791,1757772632041,-173.0,0.00028844,2]
[385317792,1757772632051,-150.0,0.00028864,7]
[385317793,1757772632060,-4240.3365,0.000289,2]
[385317794,1757772632070,-7289.124,0.000289,2]
[385317795,1757772632080,-4056.4306,0.000289,2]
[385317796,1757772632090,-1000.0,0.000289,2]
[385317797,1757772632100,-2591.50328324,0.000289,2]
[385317798,1757772632109,-2500.0,0.000289,2]
[385317799,1757772632122,-232.0563,0.000289,2]
[385317801,1757772632131,-7606.72692532,0.00028913,2]
[385317803,1757772632140,-168.0,0.00028953,2]
[385317804,1757772632150,-150.0,0.00028971,2]
[385317805,1757772632160,-259.30404914,0.00028973,2]
[385317807,1757772632169,-330.48555283,0.00028975,2]
[385317809,1757772632179,-401.66705651,0.00028977,2]
[385317811,1757772632188,-472.8485602,0.00028979,2]
[385317813,1757772632199,-544.03006388,0.00028982,2]
[385317815,1757772632208,-615.21156757,0.00028984,2]
[385317817,1757772632218,-686.39307126,0.00028986,2]
[385317819,1757772632228,-757.57457494,0.00028988,2]
[385317821,1757772632237,-203.07415171,0.00028989,2]
[385317823,1757772632247,-228.79396988,0.00028989,2]
[385317825,1757772632256,-185.13662043,0.00028989,2]
[385317827,1757772632265,-828.75607862,0.0002899,2]
[385317829,1757772632275,-2026.51598023,0.0002899,2]
[385317840,1757772632596,-10452.72397377,0.0002899,2]
[385317841,1757772632607,-1226.4308436,0.00028999,15]
[385317842,1757772632618,-979.07498179,0.00028999,15]
[385317843,1757772632627,-98324.25503973,0.00029,2]
[385317844,1757772632640,-999.0237001,0.00029,2]
[385317845,1757772632651,-454.342967,0.00029,2]
[385317846,1757772632676,-2689.06279724,0.00029,2]
[385317847,1757772632687,-519.89246521,0.00029,2]
[385317848,1757772632699,-1075.43,0.00029,2]
[385317849,1757772632711,-1134.07395127,0.00029,2]
[385317850,1757772632732,-3277.29660856,0.00029,2]
[385317851,1757772632781,-56401.51756252,0.00029,2]
[385317852,1757772632791,-57705.56236139,0.00029,2]
[385317853,1757772632803,-686.36343726,0.00029,2]
[385317854,1757772632819,-718.78087629,0.00029,2]
[385317855,1757772632831,-1156.67579321,0.00029,2]
[385317856,1757772632843,-1701.6785179,0.00029,2]
[385317870,1757772637984,-160.15577892,0.0002897,2]
[385317872,1757772637994,-2345.84422108,0.00029,2]
[385317874,1757772638006,-7129.2,0.00029,2]
[385317875,1757772638018,-9302.0,0.00029,2]
[385317876,1757772638029,-3364.0,0.00029,2]
[385317877,1757772638087,-4132.77243646,0.00029,2]
[385317878,1757772638099,-8411.5299,0.00029,2]
[385317879,1757772638110,-3345.59245641,0.00029,2]
[385317880,1757772638122,-1295.0,0.00029,2]
[385317881,1757772638131,-2591.50328318,0.00029087,2]
[385317883,1757772638141,-410.6,0.00029151,2]
[385317885,1757772638150,-166.91,0.00029151,2]
[385317887,1757772638159,-330.0,0.00029193,2]
[385317889,1757772638169,-328.0,0.00029256,2]
[385317891,1757772638178,-327.0,0.00029265,7]
[385317893,1757772638188,-508.0,0.00029274,2]
[385317895,1757772638198,-150.0,0.00029274,2]
[385317898,1757772638209,-500.0,0.00029274,2]
[385317900,1757772638219,-153.97599017,0.00029274,2]
[385317902,1757772638229,-200.0,0.00029274,2]
[385317904,1757772638238,-500.0,0.00029274,2]
[385317905,1757772638248,-200.0,0.00029274,2]
[385317907,1757772638257,-207.23693814,0.00029274,2]
[385317909,1757772638266,-150.0,0.00029274,2]
[385317911,1757772638275,-256.92537491,0.00029274,2]
[385317913,1757772638284,-150.0,0.00029274,2]
[385317915,1757772638293,-222.24,0.00029274,2]
[385317917,1757772638302,-150.0,0.00029274,2]
[385317919,1757772638311,-150.0,0.00029274,2]
[385317921,1757772638320,-150.0,0.00029274,2]
[385317923,1757772638330,-150.0,0.00029274,2]
[385317925,1757772638339,-150.0,0.00029274,2]
[385317927,1757772638348,-150.0,0.00029274,2]
[385317929,1757772638357,-150.0,0.00029274,2]
[385317931,1757772638369,-150.0,0.00029274,2]
[385317933,1757772638379,-150.0,0.00029274,2]
[385317936,1757772638388,-2591.50328318,0.00029274,2]
[385317938,1757772638397,-150.0,0.00029286,2]
[385317940,1757772638406,-150.0,0.00029286,2]
[385317941,1757772638415,-157.29135678,0.00029286,2]
[385317944,1757772638424,-150.0,0.00029286,2]
[385317946,1757772638434,-150.84043773,0.00029286,2]
[385317948,1757772638443,-150.0,0.00029286,2]
[385317950,1757772638452,-150.0,0.00029286,2]
[385317952,1757772638461,-150.0,0.00029286,2]
[385317954,1757772638470,-327.0,0.00029353,2]
[385317956,1757772638479,-12479.239954,0.00029369,2]
[385317957,1757772638488,-255.0,0.0002937,2]
[385317959,1757772638497,-168.0,0.00029379,2]
[385317962,1757772638507,-245.73,0.0002942,2]
[385317964,1757772638516,-2591.50328318,0.00029461,2]
[385317966,1757772638529,-278.33,0.00029479,2]
[385317968,1757772638539,-151.0,0.0002948,7]
[385317970,1757772638549,-151.0,0.0002948,7]
[385317972,1757772638558,-151.0,0.0002948,7]
[385317974,1757772638568,-250.529338,0.0002948,7]
[385317975,1757772638577,-151.0,0.0002948,7]
[385317977,1757772638586,-151.0,0.0002948,7]
[385317979,1757772638596,-5000.0,0.0002948,2]
[385317981,1757772638605,-152.747182,0.0002949,7]
[385317983,1757772638614,-152.932043,0.0002949,7]
[385317985,1757772638626,-212.772957,0.0002949,7]
[385317987,1757772638636,-247.590524,0.0002949,7]
[385317989,1757772638645,-33410.14559832,0.0002949,2]
[385317992,1757772638658,-542.46609112,0.0002949,2]
[385317997,1757772638704,-2455.06197969,0.0002949,2]
[385318000,1757772638717,-1459.50309689,0.0002949,2]
[385318100,1757772639633,-3134.41768548,0.0002949,2]
[385318107,1757772639693,-295.115,0.0002949,2]
[385318146,1757772640337,-318.41790154,0.0002949,2]
[385318171,1757772642832,-540.8336357,0.00028204,2]
[385318172,1757772642842,-8301.83246296,0.0002949,2]
[385318173,1757772642852,-100000.0,0.000295,2]
[385318174,1757772642862,-1000.0,0.000295,10]
[385318175,1757772642875,-1013.0,0.000295,2]
[385318176,1757772642884,-12479.239954,0.00029503,2]
[385318177,1757772642894,-151.0,0.00029515,7]
[385318178,1757772642904,-151.0,0.00029515,7]
[385318179,1757772642914,-200.0,0.00029548,2]
[385318180,1757772642924,-500.0,0.00029548,2]
[385318181,1757772642933,-504.75540612,0.00029548,2]
[385318182,1757772642945,-200.0,0.00029548,2]
[385318183,1757772642954,-150.0,0.00029548,2]
[385318184,1757772642963,-250.0,0.00029548,2]
[385318185,1757772642973,-150.0,0.00029548,2]
[385318186,1757772642983,-150.0,0.00029548,2]
[385318187,1757772642992,-150.0,0.00029548,2]
[385318188,1757772643001,-420.0,0.0002955,2]
[385318189,1757772643011,-150.0,0.0002956,2]
[385318190,1757772643020,-150.0,0.0002956,2]
[385318191,1757772643030,-150.0,0.0002956,2]
[385318192,1757772643040,-150.0,0.0002956,2]
[385318193,1757772643050,-1024.29,0.0002958,2]
[385318194,1757772643059,-150.0,0.00029587,2]
[385318195,1757772643068,-259.62022766,0.00029589,2]
[385318196,1757772643078,-330.88852545,0.00029591,2]
[385318197,1757772643088,-402.15682324,0.00029593,2]
[385318198,1757772643099,-473.42512103,0.00029595,2]
[385318200,1757772643109,-12479.239954,0.00029596,2]
[385318201,1757772643119,-544.69341882,0.00029597,2]
[385318202,1757772643128,-615.96171661,0.000296,2]
[385318203,1757772643138,-2000.0,0.000296,10]
[385318204,1757772643148,-687.2300144,0.00029602,2]
[385318205,1757772643158,-758.49831219,0.00029604,2]
[385318206,1757772643167,-829.76661001,0.00029606,2]
[385318207,1757772643177,-151.0,0.00029621,7]
[385318208,1757772643186,-151.0,0.00029621,7]
[385318209,1757772643195,-12479.239954,0.00029638,2]
[385318210,1757772643205,-452.08362811,0.00029639,2]
[385318211,1757772643215,-2591.50328318,0.00029648,2]
[385318213,1757772643225,-1476.803,0.00029652,23]
[385318215,1757772643235,-170.09,0.00029652,23]
[385318217,1757772643245,-12479.239954,0.00029689,2]
[385318219,1757772643254,-12479.239954,0.00029697,2]
[385318221,1757772643264,-2038.02398235,0.000297,10]
[385318225,1757772643291,-961.97601765,0.000297,10]
[385318227,1757772643301,-665.94187304,0.00029708,2]
[385318394,1757772645103,500.0,0.00032876,120]
[385318420,1757772645382,500.0,0.00032876,120]
[385318484,1757772645770,500.0,0.00032876,120]
[385318485,1757772645818,-782.0249985,0.00029708,2]
[385318486,1757772645838,-4240.45164835,0.00029708,2]
[385318764,1757772648593,-44228.54129611,0.00029708,2]
[385318766,1757772648603,-327.0,0.00029725,2]
[385318768,1757772648612,-859.0,0.00029728,5]
[385318770,1757772648621,-12479.239954,0.00029738,2]
[385318772,1757772648631,-3388.0,0.00029749,2]
[385318774,1757772648641,-1260.0,0.00029749,2]
[385318776,1757772648650,-2038.0,0.00029749,2]
[385318778,1757772648663,-887.0,0.00029749,2]
[385318780,1757772648674,-568.0,0.00029749,2]
[385318782,1757772648684,-1302.0,0.00029749,2]
[385318784,1757772648694,-601.0,0.00029749,2]
[385318786,1757772648705,-1579.0,0.00029749,2]
[385318788,1757772648715,-812.0,0.00029749,2]
[385318790,1757772648725,-2731.669,0.00029749,2]
[385318792,1757772648736,-4168.0,0.00029749,2]
[385318794,1757772648746,-6173.0,0.00029749,2]
[385318796,1757772648765,-864.947,0.00029749,2]
[385318798,1757772648787,-1177.0,0.00029749,2]
[385318800,1757772648807,-403.65850391,0.00029749,2]
[385318802,1757772648817,-403.65850389,0.00029765,2]
[385318804,1757772648828,-12479.239954,0.0002977,2]
[385318806,1757772648838,-502.42090993,0.00029773,5]
[385318808,1757772648848,-500.0,0.00029773,5]
[385318810,1757772648858,-500.0,0.00029773,2]
[385318812,1757772648867,-403.65850389,0.0002978,2]
[385318814,1757772648878,-173.51090534,0.0002978,2]
[385318816,1757772648890,-152.49,0.000298,7]
[385318818,1757772648899,-4000.0,0.000298,10]
[385318820,1757772648909,-168.0,0.00029805,2]
[385318822,1757772648918,-12479.239954,0.00029815,2]
[385318824,1757772648928,-504.22106769,0.00029822,2]
[385318826,1757772648937,-208.56789417,0.00029822,2]
[385318828,1757772648947,-150.0,0.00029822,2]
[385318830,1757772648957,-200.0,0.00029822,2]
[385318832,1757772648967,-200.0,0.00029822,2]
[385318834,1757772648977,-150.0,0.0002983,2]
[385318836,1757772648987,-262.73143874,0.00029832,2]
[385318838,1757772648998,-150.0,0.00029834,2]
[385318840,1757772649008,-200.0,0.00029834,2]
[385318842,1757772649017,-150.0,0.00029834,2]
[385318844,1757772649026,-233.19019167,0.00029834,2]
[385318846,1757772649036,-334.85379448,0.00029834,2]
[385318848,1757772649046,-2591.50328318,0.00029836,2]
[385318850,1757772649056,-406.97615021,0.00029836,2]
[385318852,1757772649065,-479.09850594,0.00029838,2]
[385318854,1757772649075,-12479.239954,0.0002984,2]
[385318856,1757772649084,-551.22086168,0.00029841,2]
[385318858,1757772649094,-623.34321741,0.00029843,2]
[385318860,1757772649103,-695.46557315,0.00029845,2]
[385318862,1757772649113,-767.58792888,0.00029847,2]
[385318864,1757772649123,-839.71028461,0.00029849,2]
[385318866,1757772649134,-452.08362805,0.00029849,2]
[385318868,1757772649143,-2000.0,0.0002985,2]
[385318870,1757772649153,-12479.239954,0.0002985,2]
[385318872,1757772649162,-12479.239954,0.00029852,2]
[385318874,1757772649172,-827.64560162,0.0002986,2]
[385318875,1757772649182,-37437.719862,0.0002986,2]
[385318876,1757772649192,-20464.70782594,0.0002986,2]
[385318877,1757772649201,-6729.0,0.00029863,2]
[385318878,1757772649211,-2277.0,0.00029863,2]
[385318879,1757772649221,-860.0,0.00029863,2]
[385318880,1757772649231,-1144.0,0.00029863,2]